bitfinex/quotes_ETHUSD_20250422
["timestamp","ask_amount","ask_price","bid_price","bid_amount"]
[1745360944833,0.826,1749.7,1749.1,3.05716513]
[1745360945627,0.826,1749.7,1749.1,3.0]
[1745360945824,0.826,1749.7,1749.1,3.05716512]
[1745360946607,0.826,1749.7,1749.1,8.77433762]
[1745360946928,0.826,1749.7,1749.1,3.05716512]
[1745360947271,0.826,1749.7,1749.1,0.05716512]
[1745360947558,0.7752,1749.4,1748.7,5.71836799]
[1745360948563,0.7752,1749.4,1748.8,0.0571746]
[1745360948721,0.7752,1749.4,1748.7,5.71837816]
[1745360949229,0.7752,1749.4,1748.7,11.4366909]
[1745360949556,0.7752,1749.4,1748.9,5.71765391]
[1745360949731,0.7752,1749.4,1749.0,5.71738868]
[1745360950057,0.7752,1749.4,1749.1,5.77437243]
[1745360950348,0.7752,1749.4,1749.1,5.71720391]
[1745360950555,0.7752,1749.4,1749.0,10.59347668]
[1745360950757,0.7752,1749.4,1749.0,10.59340703]
[1745360950917,0.7752,1749.4,1749.0,12.32241465]
[1745360951119,0.7752,1749.4,1749.0,1.72900762]
[1745360951313,0.7752,1749.4,1748.9,6.69659434]
[1745360951553,0.7752,1749.4,1748.9,9.69650518]
[1745360952051,0.7752,1749.4,1749.1,5.71701511]
[1745360952220,0.7752,1749.4,1749.0,5.71755288]
[1745360952647,0.7752,1749.4,1748.9,5.71774036]
[1745360953461,0.7752,1749.4,1749.0,5.71734529]
[1745360953624,0.7752,1749.4,1749.0,5.71741517]
[1745360953821,0.7752,1749.4,1749.1,5.71721232]
[1745360954250,0.7752,1749.4,1749.1,5.71699044]
[1745360954457,0.7752,1749.4,1749.1,5.71702178]
[1745360954664,0.823,1749.7,1749.2,5.7167424]
[1745360954861,0.823,1749.7,1749.1,10.93209078]
[1745360955039,0.823,1749.7,1749.1,10.93209227]
[1745360955444,0.823,1749.7,1749.2,5.71679266]
[1745360955633,0.823,1749.7,1749.2,11.43345592]
[1745360955834,0.823,1749.7,1749.2,5.71666326]
[1745360956153,0.823,1749.7,1749.1,5.21504596]
[1745360956343,0.823,1749.7,1749.2,5.71679195]
[1745360957166,0.823,1749.7,1749.3,5.7165473]
[1745360957369,0.823,1749.7,1749.2,5.7167042]
[1745360958265,0.823,1749.7,1749.2,5.71670406]
[1745360958486,0.823,1749.7,1749.2,11.43341462]
[1745360958667,0.823,1749.7,1749.2,5.71669171]
[1745360958868,0.823,1749.7,1749.5,5.71590235]
[1745360959035,0.823,1749.9,1749.5,5.71582798]
[1745360959236,0.823,1749.9,1749.6,5.71545713]
[1745360959439,0.823,1749.9,1749.5,5.71571541]
[1745360959636,0.823,1749.9,1749.5,6.85889467]
[1745360960062,0.823,1749.9,1749.3,5.71635741]
[1745360960448,0.823,1749.9,1749.3,11.432692]
[1745360960632,0.823,1749.9,1749.3,5.71633459]
[1745360960836,0.823,1749.9,1749.4,5.71620247]
[1745360961183,0.823,1749.9,1749.3,15.50431071]
[1745360961369,0.823,1749.9,1749.4,7.2666337]
[1745360961739,0.823,1749.9,1749.4,7.26655223]
[1745360962077,0.823,1749.9,1749.4,1.55043107]
[1745360962504,0.823,1749.9,1749.4,5.71622994]
[1745360962672,0.823,1749.9,1749.3,11.43273176]
[1745360963184,0.823,1749.9,1749.4,5.71621148]
[1745360963384,0.823,1749.9,1749.4,5.71604641]
[1745360963885,0.823,1749.9,1749.5,5.71577321]
[1745360964087,0.823,1749.9,1749.6,0.57157732]
[1745360964267,0.823,1749.9,1749.3,9.78796909]
[1745360964604,0.823,1749.9,1749.4,5.71622828]
[1745360964890,0.823,1749.9,1749.5,5.71586925]
[1745360965066,0.823,1749.9,1749.6,5.71558742]
[1745360965595,0.823,1749.9,1749.5,3.0]
[1745360965791,0.823,1749.9,1749.4,5.71606116]
[1745360966045,0.823,1749.9,1749.5,5.71586416]
[1745360966303,0.823,1749.9,1749.4,10.56648758]
[1745360967101,0.823,1749.9,1749.3,3.0]
[1745360967802,0.823,1749.9,1749.3,8.71656645]
[1745360967959,1.2533591,1749.9,1749.4,5.71621227]
[1745360968465,0.823,1749.9,1749.5,5.71581752]
[1745360968665,0.823,1749.9,1749.6,5.71558294]
[1745360969072,0.823,1749.9,1749.6,0.5772734]
[1745360969580,0.823,1749.9,1749.5,5.71591684]
[1745360969786,0.823,1749.9,1749.4,5.71610667]
[1745360969995,0.823,1749.9,1749.5,5.71589137]
[1745360970305,0.823,1749.9,1749.5,5.71591883]
[1745360971092,0.823,1749.9,1749.6,0.05715072]
[1745360971300,0.7701,1750.2,1749.9,5.71447151]
[1745360971603,0.7701,1750.2,1749.9,5.71459661]
[1745360971768,0.7701,1750.2,1749.9,5.71461226]
[1745360971975,0.7701,1750.2,1750.0,5.71426909]
[1745360972299,0.7701,1750.2,1749.9,0.05713833]
[1745360972606,0.7701,1750.6,1750.1,5.7139592]
[1745360973084,0.7701,1750.6,1750.0,3.0]
[1745360973265,0.7701,1750.6,1750.1,4.07160504]
[1745360973470,0.7701,1750.6,1750.3,0.8278]
[1745360973693,0.7701,1750.9,1750.3,4.89940504]
[1745360973901,0.7701,1750.9,1750.4,3.4899405]
[1745360974082,0.7701,1750.9,1750.4,0.4899405]
[1745360974669,6.48178585,1750.8,1749.9,0.30571383]
[1745360974873,5.71202103,1750.7,1749.9,3.0]
[1745360975183,0.7701,1750.6,1749.9,3.0]
[1745360975805,0.7701,1750.6,1749.8,10.6141929]
[1745360976014,0.7701,1750.6,1749.8,10.6141306]
[1745360976314,0.7701,1750.6,1749.9,1.06141306]
[1745360976673,0.7701,1750.6,1749.8,4.89940504]
[1745360977005,0.7701,1750.5,1749.8,4.89940504]
[1745360979929,0.7701,1750.4,1749.7,4.07160504]
[1745360980214,6.48354096,1750.3,1749.5,12.28160504]
[1745360980418,0.7701,1750.2,1749.6,3.0]
[1745360980925,0.7701,1750.1,1749.4,0.8278]
[1745360981130,0.7701,1750.0,1749.4,0.4899405]
[1745360981289,5.71473135,1749.9,1749.2,8.208]
[1745360981623,0.7701,1749.8,1749.2,8.208]
[1745360985737,0.7701,1749.8,1749.1,3.0]
[1745360987307,6.4850718,1749.8,1749.1,3.0]
[1745360987509,7.70504204,1749.8,1749.1,3.38278]
[1745360987908,7.70504204,1749.8,1748.9,3.0]
[1745360987909,0.7874,1749.5,1748.9,3.0]
[1745360988112,0.7874,1749.4,1748.8,8.9245]
[1745360988351,0.7874,1749.4,1748.5,0.42291639]
[1745360988507,0.7874,1749.3,1748.6,0.7695]
[1745360988704,1.43777999,1749.3,1748.6,0.7695]
[1745360988909,0.7874,1749.2,1748.5,8.156]
[1745360989852,0.7874,1749.2,1748.4,7.07160504]
[1745360990145,0.7874,1749.2,1748.4,0.7695]
[1745360990306,0.7874,1749.2,1748.5,3.0]
[1745360990502,0.7874,1749.2,1748.4,6.48897991]
[1745360990503,0.7874,1749.2,1748.6,0.3]
[1745360990847,0.7874,1749.2,1748.5,3.0]
[1745360992210,0.7874,1749.2,1748.5,8.71911619]
[1745360992551,0.7874,1749.2,1748.5,3.0]
[1745360993734,0.7874,1749.2,1748.5,8.71908042]
[1745360994850,0.7874,1749.2,1748.5,8.7189012]
[1745360995156,0.7874,1749.2,1748.6,0.87189012]
[1745360996457,0.7874,1749.2,1748.5,3.0]
[1745360996752,0.7874,1749.2,1748.5,8.71918706]
[1745360996924,0.7874,1749.2,1748.5,8.71899449]
[1745360997120,0.7874,1749.2,1748.5,8.71896454]
[1745360997664,4.07160504,1749.0,1748.2,0.7922]
[1745360997955,9.36710498,1749.3,1748.3,5.71961956]
[1745360997956,0.8083,1748.8,1748.3,5.71961956]
[1745360998165,0.8083,1748.8,1748.4,5.77661426]
[1745360998333,0.8083,1748.8,1748.4,5.71934886]
[1745360998536,0.8083,1748.8,1748.4,5.71937598]
[1745360999449,0.8083,1748.8,1748.4,7.07160504]
[1745360999624,0.8083,1749.1,1748.6,5.71875167]
[1745361000360,0.8083,1749.1,1748.6,5.71882915]
[1745361000864,0.8083,1749.1,1748.6,5.7188608]
[1745361001025,0.8083,1749.1,1748.6,5.71866543]
[1745361001354,0.8083,1749.1,1748.7,5.71848688]
[1745361001557,0.8083,1749.1,1748.7,1.14371523]
[1745361001865,0.8083,1749.1,1748.7,12.58040148]
[1745361002072,0.8083,1749.1,1748.8,5.71810261]
[1745361002364,0.8083,1749.1,1748.7,6.86203109]
[1745361002572,0.8083,1749.1,1748.8,5.71802322]
[1745361002720,0.8083,1749.5,1748.9,0.57180232]
[1745361002927,0.8083,1749.5,1748.9,3.57180232]
[1745361003127,0.8083,1749.4,1748.9,0.57180232]
[1745361003455,0.8083,1749.4,1748.7,8.71827012]
[1745361003632,0.8083,1749.4,1748.9,5.71785233]
[1745361003824,0.8083,1749.4,1748.7,8.71839213]
[1745361004019,0.8083,1749.4,1748.7,8.71828529]
[1745361004326,0.8083,1749.4,1748.7,3.0]
[1745361004568,0.8083,1749.4,1748.8,6.01802772]
[1745361004931,0.8083,1749.4,1748.8,11.73612925]
[1745361005132,0.8083,1749.4,1748.8,6.01802772]
[1745361005436,0.8083,1749.4,1748.9,5.77502576]
[1745361005654,0.8083,1749.4,1748.8,10.08951113]
[1745361005828,0.8083,1749.4,1748.9,1.00895111]
[1745361006033,0.8083,1749.4,1748.9,10.51880451]
[1745361006224,27.3032081,1749.7,1749.0,4.12877002]
[1745361006462,0.8083,1749.6,1749.1,5.7170792]
[1745361006658,0.8083,1749.6,1749.2,5.71689645]
[1745361006864,0.8083,1749.6,1749.2,1.14339757]
[1745361007065,0.8083,1749.6,1748.9,1.00895111]
[1745361007261,0.8083,1749.6,1748.9,6.72680169]
[1745361007463,0.8083,1749.6,1748.9,1.00895111]
[1745361007667,0.8083,1749.6,1748.8,9.01813209]
[1745361007965,0.8083,1749.6,1748.9,5.71783468]
[1745361008267,0.8083,1749.6,1749.1,5.71701423]
[1745361008767,0.8083,1749.6,1748.9,6.50978839]
[1745361009065,0.8083,1749.6,1748.8,3.3]
[1745361009363,0.8083,1749.6,1748.9,0.38716799]
[1745361009664,0.8083,1749.6,1748.9,0.05716799]
[1745361009879,0.8083,1749.6,1748.8,3.3]
[1745361010334,0.8083,1749.6,1748.4,5.71947059]
[1745361010335,0.8083,1749.2,1748.3,6.51180562]
[1745361010530,0.8083,1749.2,1748.2,10.22387789]
[1745361010737,0.8083,1749.2,1748.6,5.71867523]
[1745361010944,0.8083,1749.2,1748.8,4.07160504]
[1745361011194,0.8083,1749.2,1748.9,0.4071605]
[1745361011390,0.8083,1749.2,1748.6,9.79032808]
[1745361011669,0.8083,1749.2,1748.7,3.0]
[1745361011879,0.8083,1749.2,1748.7,8.71852154]
[1745361012174,0.8083,1749.2,1748.7,3.0]
[1745361012563,0.8083,1749.2,1748.8,0.05717543]
[1745361012872,0.8083,1749.2,1748.8,0.87755268]
[1745361013176,0.8083,1749.2,1748.7,8.71831972]
[1745361013471,0.8083,1749.2,1748.7,3.0]
[1745361013864,0.8083,1749.2,1748.6,9.79028992]
[1745361014938,0.8083,1749.2,1748.6,4.07160504]
[1745361015138,0.8083,1749.2,1748.5,3.0]
[1745361015481,0.8083,1749.2,1748.3,10.60740418]
[1745361015774,0.8083,1749.2,1748.5,5.71916411]
[1745361016365,0.766,1749.1,1748.4,5.71929517]
[1745361017077,0.766,1749.1,1748.3,10.60745156]
[1745361017281,0.766,1749.1,1748.5,5.71907913]
[1745361017440,0.766,1749.1,1748.9,4.07160504]
[1745361017634,0.766,1749.5,1749.0,0.05716614]
[1745361017880,0.766,1749.5,1748.9,4.07160504]
[1745361018179,0.766,1749.5,1748.7,3.0]
[1745361018340,0.766,1749.5,1748.8,9.78980643]
[1745361018532,0.766,1749.5,1748.9,0.97898064]
[1745361018737,3.0,1749.4,1748.6,0.57190791]
[1745361018936,0.766,1749.3,1748.4,4.88780504]
[1745361019369,0.766,1749.3,1748.6,4.07160504]
[1745361019575,0.766,1749.3,1748.8,4.07160504]
[1745361020163,0.766,1749.3,1748.7,0.8162]
[1745361021083,0.766,1749.3,1748.8,4.07160504]
[1745361021377,0.766,1749.3,1748.9,0.4071605]
[1745361022780,0.766,1749.6,1749.0,4.88780504]
[1745361024874,0.766,1749.5,1748.9,0.4071605]
[1745361025074,0.766,1749.5,1748.6,0.8162]
[1745361025386,0.766,1749.5,1748.7,12.78997785]
[1745361025572,0.766,1749.5,1748.7,9.79012377]
[1745361025910,0.766,1749.5,1748.8,0.8162]
[1745361026472,0.766,1749.5,1748.8,9.53428649]
[1745361026786,0.766,1749.5,1748.9,0.95342865]
[1745361026987,0.766,1749.5,1748.8,3.8162]
[1745361027594,0.766,1749.5,1748.8,0.8162]
[1745361029274,0.766,1749.5,1748.8,6.53435013]
[1745361029696,0.766,1749.5,1748.8,12.25233239]
[1745361029978,0.766,1749.5,1748.8,6.53417358]
[1745361030180,0.766,1749.5,1749.0,5.71753801]
[1745361030397,0.766,1749.5,1749.1,0.8067]
[1745361030599,0.766,1749.5,1748.9,8.5317224]
[1745361030814,0.766,1749.5,1748.9,14.24958166]
[1745361031130,0.766,1749.5,1749.2,4.07160504]
[1745361031274,0.766,1749.5,1749.3,0.4071605]
[1745361031475,0.766,1749.5,1749.0,9.78895415]
[1745361031799,0.794,1749.7,1749.2,9.78826116]
[1745361032322,0.794,1749.9,1749.4,4.87830504]
[1745361032530,0.794,1749.9,1749.4,0.8067]
[1745361033372,0.794,1749.9,1749.0,12.98330504]
[1745361033577,0.794,1749.9,1749.1,1.2983305]
[1745361033578,0.794,1749.8,1749.1,1.2983305]
[1745361033778,0.794,1749.8,1749.2,0.8067]
[1745361035020,0.794,1749.8,1749.2,6.52359518]
[1745361035194,0.794,1749.8,1749.3,5.77367639]
[1745361035528,0.794,1749.8,1749.3,5.71652862]
[1745361035727,0.794,1750.1,1749.4,3.62879671]
[1745361036041,0.794,1750.1,1749.4,7.6432579]
[1745361036400,0.794,1750.1,1749.4,7.70039904]
[1745361036739,3.0,1750.3,1749.6,4.07160504]
[1745361036740,0.794,1750.3,1749.6,4.07160504]
[1745361036890,0.794,1750.3,1749.7,0.4071605]
[1745361037295,0.794,1750.3,1749.7,3.4071605]
[1745361038648,0.794,1750.3,1749.8,0.05713159]
[1745361039004,0.794,1750.3,1749.7,0.4071605]
[1745361039206,0.794,1750.3,1749.6,8.104]
[1745361039802,0.794,1750.1,1749.4,0.57165286]
[1745361040007,0.794,1750.1,1749.3,3.8067]
[1745361040538,0.794,1750.0,1749.1,19.99665999]
[1745361040740,0.794,1750.0,1749.1,14.27963554]
[1745361040931,0.794,1750.0,1749.2,0.05715041]
[1745361041993,4.07160504,1750.0,1749.1,10.2080305]
[1745361042299,0.794,1749.7,1748.9,0.8067]
[1745361042503,0.794,1749.7,1748.7,31.82330504]
[1745361043003,0.794,1749.7,1748.9,9.78944457]
[1745361043300,0.794,1749.7,1749.1,0.8067]
[1745361043602,0.794,1749.7,1748.9,4.88600504]
[1745361043760,0.8074,1749.4,1748.5,0.8144]
[1745361044103,4.07160504,1749.1,1748.3,0.8144]
[1745361044304,0.8074,1749.0,1748.2,8.052]
[1745361044467,0.8074,1749.0,1748.3,0.8052]
[1745361044905,0.8074,1748.9,1748.3,0.8052]
[1745361045611,0.8074,1748.9,1748.4,0.05718538]
[1745361046819,0.7769,1748.8,1748.2,8.052]
[1745361047113,0.7769,1748.8,1747.9,3.825]
[1745361047327,0.7769,1748.8,1748.0,0.3825]
[1745361047600,0.7769,1748.8,1748.1,0.057189]
[1745361047806,0.7769,1748.8,1748.0,4.45410504]
[1745361048011,0.7769,1748.8,1748.0,0.3825]
[1745361048193,0.7769,1748.8,1748.0,3.3825]
[1745361048401,0.7769,1748.7,1748.1,0.33825]
[1745361048784,0.7769,1748.7,1748.0,0.3825]
[1745361050115,0.7769,1748.6,1747.8,26.893]
[1745361050326,0.7769,1748.4,1747.7,0.4024811]
[1745361050488,0.7769,1748.3,1747.7,0.4024811]
[1745361051513,0.7769,1748.3,1747.7,1.42209255]
[1745361051729,0.7769,1748.3,1747.7,4.42209255]
[1745361051881,0.7769,1748.3,1747.8,4.89660504]
[1745361052087,0.7769,1748.3,1747.7,1.42209255]
[1745361052883,0.7769,1748.3,1747.7,0.4024811]
[1745361053293,0.7769,1748.2,1747.7,0.4024811]
[1745361053900,0.7769,1748.1,1747.7,0.4024811]
[1745361054493,4.07160504,1747.9,1747.7,0.4024811]
[1745361054691,3.0,1747.8,1747.7,0.4024811]
[1745361054897,4.4840605,1747.8,1747.7,0.4024811]
[1745361055991,5.0340605,1747.8,1747.7,0.4024811]
[1745361056833,0.7769,1747.5,1746.6,0.825]
[1745361057002,0.8069,1747.4,1746.6,8.883]
[1745361057201,1.2947505,1747.4,1746.7,0.8883]
[1745361057510,0.8069,1747.3,1746.7,0.8383]
[1745361060186,0.8069,1747.3,1746.6,8.058]
[1745361060391,0.8069,1747.3,1746.1,0.7726]
[1745361060587,0.8069,1747.1,1746.2,8.059]
[1745361060832,5.21557947,1747.0,1745.9,0.4024811]
[1745361061001,0.8069,1746.7,1745.9,6.13000458]
[1745361061192,0.8069,1746.7,1746.1,5.72702479]
[1745361061392,0.8069,1746.7,1746.0,6.34019279]
[1745361061605,0.8069,1746.7,1746.1,5.7270119]
[1745361061791,0.8069,1746.7,1746.2,5.7839464]
[1745361062013,0.8069,1746.7,1746.2,3.7726]
[1745361062218,0.8069,1746.7,1746.3,0.37726]
[1745361062934,0.8069,1746.7,1746.0,0.61300046]
[1745361063136,0.8069,1746.7,1746.0,8.061]
[1745361063591,0.8069,1746.7,1746.0,13.78819615]
[1745361063804,0.8069,1746.7,1746.3,5.72630337]
[1745361064004,6.1,1747.1,1746.3,5.72630337]
[1745361064005,0.8069,1747.0,1746.4,5.72604823]
[1745361065120,0.8069,1747.0,1746.4,5.72591238]
[1745361065323,0.8069,1747.0,1746.5,9.29809479]
[1745361065636,0.8069,1747.3,1746.8,3.0]
[1745361065946,0.8069,1747.3,1746.8,9.15180445]
[1745361066115,0.8069,1747.3,1746.8,3.42720134]
[1745361066519,0.8069,1747.3,1746.8,3.0]
[1745361066717,0.8069,1747.3,1746.8,3.37726]
[1745361066923,0.8069,1747.3,1746.8,9.10197036]
[1745361067120,0.8069,1747.3,1746.8,3.37726]
[1745361067310,0.8069,1747.3,1746.9,0.0572279]
[1745361067511,0.8069,1747.3,1746.9,5.7244153]
[1745361067853,0.8069,1747.5,1747.1,5.72347201]
[1745361068054,0.8069,1747.9,1747.3,3.0]
[1745361068909,0.8069,1747.9,1747.2,8.062]
[1745361069110,0.8069,1747.9,1747.0,3.57244153]
[1745361069343,0.8069,1747.8,1746.8,12.63731627]
[1745361069853,0.8069,1747.8,1747.0,3.0]
[1745361071986,0.8069,1747.8,1747.0,8.72408184]
[1745361072391,0.8069,1747.8,1747.1,3.0]
[1745361072607,0.8069,1747.8,1747.1,8.72362307]
[1745361072779,0.8069,1747.8,1747.4,8.72257613]
[1745361072977,0.8069,1747.8,1747.5,8.062]
[1745361073147,0.8069,1747.8,1747.6,3.05720644]
[1745361073349,0.8069,1747.8,1747.2,0.87236231]
[1745361073659,0.8069,1747.8,1747.1,3.0]
[1745361073864,0.8069,1747.8,1747.1,8.72373245]
[1745361074069,0.8069,1747.8,1747.1,8.72372762]
[1745361074385,0.8069,1747.8,1747.3,5.72291058]
[1745361074692,0.8069,1747.8,1747.5,8.72225465]
[1745361074852,0.7719,1748.2,1747.6,17.60718053]
[1745361075666,0.7719,1748.2,1747.6,11.88522547]
[1745361076060,0.7719,1748.2,1747.6,0.87222547]
[1745361076292,0.7719,1748.2,1747.4,3.0]
[1745361076497,0.7719,1748.2,1747.6,3.0]
[1745361076797,0.7719,1748.2,1747.7,0.05720559]
[1745361077003,0.7719,1748.2,1747.8,5.77866959]
[1745361077187,0.7719,1748.4,1747.8,0.05720573]
[1745361077394,0.7719,1748.4,1748.0,3.0]
[1745361077594,0.7719,1748.4,1748.0,11.012]
[1745361078182,0.7719,1748.9,1748.1,0.8067]
[1745361078363,0.7719,1748.9,1748.1,6.52707552]
[1745361078583,0.7719,1748.9,1748.2,0.65270755]
[1745361079013,0.7719,1748.9,1748.3,0.0571833]
[1745361079212,0.7719,1748.9,1748.4,3.0]
[1745361079730,0.7719,1748.9,1748.2,8.7199592]
[1745361080034,0.7719,1748.9,1748.4,5.71925788]
[1745361080237,0.7719,1748.9,1748.5,11.58392579]
[1745361080802,0.7719,1748.9,1748.5,17.30297737]
[1745361081004,0.7719,1749.3,1748.8,5.71802346]
[1745361081358,0.7719,1749.3,1748.9,0.05716025]
[1745361081498,0.7719,1749.6,1748.9,8.77488816]
[1745361081699,0.7719,1749.6,1749.0,7.40172989]
[1745361081899,0.7719,1749.6,1749.2,3.0]
[1745361082123,0.7719,1749.8,1749.3,0.05714896]
[1745361082311,0.7719,1749.8,1749.2,3.0]
[1745361082312,0.7719,1749.8,1749.2,8.71673383]
[1745361082919,0.7719,1749.8,1749.2,3.0]
[1745361083109,0.7719,1749.8,1749.3,0.3]
[1745361083510,0.7719,1750.2,1749.4,8.77336416]
[1745361084237,0.7719,1750.2,1749.4,3.0]
[1745361084744,0.7719,1750.2,1749.3,0.3]
[1745361085036,0.7719,1750.2,1749.4,13.72421756]
[1745361085241,0.7719,1750.2,1749.5,10.14534716]
[1745361085415,0.7719,1750.2,1749.5,4.37242176]
[1745361086928,0.7719,1750.6,1749.7,3.8067]
[1745361087133,0.7719,1750.6,1749.7,9.52182972]
[1745361087330,0.7719,1750.6,1749.5,11.27403383]
[1745361087645,0.7719,1750.6,1749.6,9.84296733]
[1745361088140,0.7719,1750.6,1749.6,4.12740338]
[1745361088344,0.8154,1750.5,1749.5,1.79446427]
[1745361088528,0.8154,1750.4,1749.5,0.42204251]
[1745361088733,0.8154,1750.4,1749.3,0.3]
[1745361088734,4.66557947,1750.3,1749.3,8.306]
[1745361089043,3.8154,1750.2,1749.3,8.306]
[1745361089343,0.8154,1750.0,1749.3,0.3]
[1745361089641,0.8154,1749.6,1748.8,8.005]
[1745361089942,0.8154,1749.5,1748.9,3.0]
[1745361090127,0.8154,1749.5,1749.0,0.05716678]
[1745361090446,0.8154,1749.5,1748.8,8.06216678]
[1745361090630,0.8154,1749.5,1748.9,3.0]
[1745361090942,0.8154,1749.5,1749.0,0.05716677]
[1745361090943,0.8154,1749.4,1749.0,0.05716677]
[1745361091134,0.8154,1749.4,1748.8,0.05716669]
[1745361091333,0.8154,1749.4,1748.8,3.05716669]
[1745361091540,0.8154,1749.4,1748.7,8.005]
[1745361091743,0.8154,1749.4,1748.4,24.56430698]
[1745361091744,0.8154,1749.4,1748.3,0.7638]
[1745361091932,0.8154,1749.2,1748.4,8.005]
[1745361092122,0.8154,1748.7,1747.9,8.005]
[1745361092619,0.8154,1748.5,1747.4,25.3314199]
[1745361092824,0.8154,1748.5,1747.6,5.72210163]
[1745361093061,0.8154,1748.5,1747.8,3.0]
[1745361093269,0.8154,1748.5,1747.7,5.72163968]
[1745361093566,0.8154,1748.5,1747.8,9.35069603]
[1745361093716,0.8154,1748.5,1747.8,0.62936013]
[1745361093927,0.8154,1748.5,1747.7,0.42602099]
[1745361094127,0.8154,1748.5,1747.6,8.72189287]
[1745361094331,0.8154,1748.5,1747.8,3.0]
[1745361095268,0.8154,1748.5,1747.8,8.72145499]
[1745361095659,0.8154,1748.5,1747.8,3.0]
[1745361095862,0.8154,1748.5,1747.9,0.3]
[1745361096170,0.8154,1748.5,1748.1,3.0]
[1745361097634,5.71572238,1749.6,1748.2,0.05718882]
[1745361097833,0.2,1750.0,1748.2,0.05718882]
[1745361097834,0.8154,1749.2,1748.3,8.71961503]
[1745361098030,0.8154,1749.2,1748.5,8.71903937]
[1745361098347,0.8154,1749.2,1748.6,8.006]
[1745361099174,0.8154,1749.2,1748.4,0.8719615]
[1745361099346,0.8154,1749.2,1748.5,3.0]
[1745361101840,0.8154,1749.2,1748.4,3.0]
[1745361102041,0.8125,1749.1,1748.4,3.0]
[1745361102262,0.8125,1749.1,1748.3,8.007]
[1745361102582,0.8125,1749.1,1748.4,0.05718357]
[1745361102882,0.8125,1749.1,1748.4,0.80641836]
[1745361103735,0.8125,1748.9,1748.0,8.39291717]
[1745361104170,0.8125,1748.9,1748.1,3.0]
[1745361104576,0.8125,1748.9,1748.2,0.05718816]
[1745361104874,0.8125,1748.9,1748.1,3.0]
[1745361105193,0.8125,1748.9,1748.2,6.01990335]
[1745361105345,0.8125,1748.9,1748.3,3.0]
[1745361105758,0.8125,1748.9,1748.3,8.71975578]
[1745361106381,0.8125,1748.9,1748.3,1.3617]
[1745361106553,0.8125,1748.9,1748.3,4.3617]
[1745361106758,0.8125,1748.9,1748.4,0.43617]
[1745361107851,0.8125,1748.9,1748.5,3.0]
[1745361108047,19.02379318,1749.7,1748.7,3.0]
[1745361108251,0.8125,1749.6,1748.7,8.71840004]
[1745361108451,0.8125,1749.5,1748.7,3.0]
[1745361108651,0.8125,1749.5,1748.8,0.3]
[1745361110413,0.8125,1749.5,1748.9,0.05716538]
[1745361110709,0.8125,1749.5,1749.1,9.52861217]
[1745361110871,6.1,1750.3,1749.1,9.52861217]
[1745361110872,0.8125,1750.1,1749.4,8.71603951]
[1745361111075,0.8125,1750.1,1749.6,3.0]
[1745361111283,0.8125,1750.1,1749.7,0.35713847]
[1745361111494,0.8125,1750.1,1749.7,0.3]
[1745361112097,0.8125,1750.1,1749.5,7.96]
[1745361112304,0.8125,1750.0,1749.3,11.01714508]
[1745361112485,0.8125,1750.0,1749.4,0.0571465]
[1745361112688,0.8125,1750.0,1749.3,10.96]
[1745361113584,0.8125,1750.0,1749.4,0.05714779]
[1745361113915,0.8125,1750.0,1749.4,1.15886257]
[1745361114110,0.8125,1750.0,1749.4,1.10171478]
[1745361114813,0.8125,1750.0,1749.2,26.807]
[1745361115014,0.8125,1750.0,1749.3,0.05714775]
[1745361115315,0.8125,1750.0,1749.2,26.807]
[1745361116946,0.8125,1750.0,1749.3,0.05715075]
[1745361117151,0.8125,1750.0,1749.4,3.0]
[1745361117324,0.8125,1750.0,1749.5,0.3]
[1745361117518,0.8125,1750.0,1749.2,26.807]
[1745361119210,0.8125,1750.0,1749.3,0.05715307]
[1745361119648,4.66557947,1749.7,1748.8,0.3]
[1745361119825,0.8051,1749.6,1748.8,7.957]
[1745361120367,0.8051,1749.4,1748.4,1.24937]
[1745361120538,0.8051,1749.2,1748.5,7.957]
[1745361120940,0.8051,1749.2,1748.5,13.67601313]
[1745361121660,0.8051,1749.2,1748.5,7.957]
[1745361122029,0.8051,1749.2,1748.6,3.0]
[1745361122426,0.8051,1749.2,1748.7,0.05716883]
[1745361122655,0.8051,1749.2,1748.8,3.0]
[1745361122857,0.8051,1749.2,1748.9,0.05716416]
[1745361123450,6.1,1749.6,1749.0,16.67541705]
[1745361123451,0.8051,1749.5,1749.0,16.67541705]
[1745361123652,0.8051,1749.5,1749.2,8.71680844]
[1745361123855,0.8051,1750.1,1749.4,3.0]
[1745361124053,0.8051,1750.1,1749.5,0.3]
[1745361124242,0.8051,1750.1,1749.1,3.0]
[1745361124443,0.8051,1750.1,1749.2,7.958]
[1745361124855,0.8051,1750.1,1749.3,3.0]
[1745361125049,0.8051,1750.1,1749.2,7.958]
[1745361125050,0.8051,1750.1,1749.1,3.0]
[1745361125227,5.47067947,1750.0,1749.3,7.957]
[1745361125431,0.8051,1749.8,1749.3,7.957]
[1745361125665,0.8051,1749.8,1749.0,18.845]
[1745361125666,0.8051,1749.7,1749.0,18.845]
[1745361126475,4.66557947,1749.6,1749.0,18.845]
[1745361126671,0.7701,1749.5,1748.7,0.43046797]
[1745361126875,0.7701,1749.4,1748.6,7.957]
[1745361128390,0.7701,1749.4,1748.7,3.05716886]
[1745361128560,0.7701,1749.4,1748.9,3.0]
[1745361128759,0.7701,1749.4,1749.0,0.05716099]
[1745361128983,0.7701,1749.4,1749.0,0.36287709]
[1745361129281,0.7701,1749.4,1749.0,0.3057161]
[1745361129491,0.7701,1749.4,1748.7,8.71848569]
[1745361129987,0.7701,1749.4,1748.7,8.71830186]
[1745361130688,0.7701,1749.4,1748.7,3.0]